bitfinex/quotes_BTCUSD_20240721
["timestamp","ask_amount","ask_price","bid_price","bid_amount"]
[1721520002906,0.00482106,67237.0,67236.0,0.29328174]
[1721520003110,0.06690887,67237.0,67236.0,0.29328174]
[1721520003309,0.06790887,67237.0,67236.0,0.29428174]
[1721520003511,0.07272993,67237.0,67236.0,0.29428174]
[1721520003713,0.03103443,67237.0,67236.0,0.15538174]
[1721520003937,0.12024537,67237.0,67236.0,0.15538174]
[1721520004118,0.12024537,67237.0,67236.0,0.16138174]
[1721520004119,0.03103443,67237.0,67236.0,0.16138174]
[1721520004331,0.18553482,67237.0,67236.0,0.16138174]
[1721520004592,0.18553482,67237.0,67236.0,0.15538174]
[1721520004994,0.18653482,67237.0,67236.0,0.15538174]
[1721520005199,0.18653482,67237.0,67236.0,0.001]
[1721520005200,0.09733443,67237.0,67236.0,0.001]
[1721520005404,0.15773443,67237.0,67236.0,0.001]
[1721520005537,0.2692142,67237.0,67236.0,0.001]
[1721520005941,0.2692142,67237.0,67236.0,0.15438174]
[1721520005942,0.11248097,67237.0,67236.0,0.15438174]
[1721520006206,0.09017965,67237.0,67236.0,0.36268174]
[1721520006362,0.001,67237.0,67236.0,0.36368174]
[1721520006565,0.001,67237.0,67236.0,0.36268174]
[1721520007045,0.001,67237.0,67236.0,0.36368174]
[1721520007539,0.00084,67240.0,67236.0,0.22478174]
[1721520007762,0.00084,67240.0,67239.0,0.21647479]
[1721520007967,0.00084,67240.0,67239.0,0.37085653]
[1721520008763,0.00184,67240.0,67239.0,0.37085653]
[1721520009214,0.00084,67240.0,67239.0,0.49433381]
[1721520009415,0.00084,67240.0,67239.0,0.56373381]
[1721520009621,0.00084,67240.0,67239.0,0.56973381]
[1721520009622,0.00184,67240.0,67239.0,0.56973381]
[1721520009830,0.00184,67240.0,67239.0,0.61491275]
[1721520010033,0.00184,67240.0,67239.0,0.88817573]
[1721520010437,0.00284,67240.0,67239.0,0.88917573]
[1721520011062,0.00184,67240.0,67239.0,0.88817573]
[1721520011390,0.1346649,67247.0,67246.0,0.18447894]
[1721520011391,0.10069631,67247.0,67246.0,0.18447894]
[1721520011591,0.10069631,67247.0,67246.0,0.88217573]
[1721520013572,0.10069631,67247.0,67246.0,0.96017573]
[1721520013999,0.070262,67247.0,67246.0,0.96017573]
[1721520014183,0.070262,67247.0,67246.0,0.91017573]
[1721520014388,0.15055301,67253.0,67252.0,0.10787894]
[1721520014585,0.15055301,67253.0,67252.0,0.86130094]
[1721520015032,0.00482106,67280.0,67264.0,0.04517894]
[1721520015255,0.00482106,67280.0,67266.0,0.21708174]
[1721520015466,0.00482106,67280.0,67266.0,0.44347705]
[1721520016870,0.00482106,67280.0,67266.0,0.45747705]
[1721520017050,0.00184,67267.0,67266.0,0.45747705]
[1721520017266,0.00184,67267.0,67266.0,0.44347705]
[1721520017432,0.00184,67267.0,67266.0,0.52637705]
[1721520017647,0.00184,67267.0,67266.0,0.52637168]
[1721520017844,0.00612397,67275.0,67266.0,0.46367168]
[1721520018039,0.00612397,67275.0,67270.0,0.0627]
[1721520018287,0.00482106,67272.0,67271.0,0.15438174]
[1721520019042,0.00712397,67275.0,67271.0,0.15438174]
[1721520019626,0.00482106,67273.0,67271.0,0.15438174]
[1721520019763,0.001,67272.0,67271.0,0.16838174]
[1721520020363,0.00582106,67272.0,67271.0,0.16838174]
[1721520020898,0.00582106,67272.0,67271.0,0.18238174]
[1721520021103,0.00712397,67275.0,67271.0,0.16838174]
[1721520021474,0.00482106,67274.0,67272.0,0.00297269]
[1721520021613,0.00482106,67274.0,67273.0,0.15438174]
[1721520022659,0.00612397,67275.0,67273.0,0.15438174]
[1721520022925,0.00582106,67274.0,67273.0,0.16838174]
[1721520023583,0.00682106,67274.0,67273.0,0.18238174]
[1721520023761,0.00582106,67274.0,67273.0,0.16838174]
[1721520024175,0.00682106,67274.0,67273.0,0.18238174]
[1721520024775,0.00582106,67274.0,67273.0,0.16838174]
[1721520025258,0.00582106,67274.0,67273.0,0.18238174]
[1721520025942,0.001,67274.0,67273.0,0.16838174]
[1721520026089,0.001,67274.0,67273.0,0.18238174]
[1721520026090,0.002,67274.0,67273.0,0.18238174]
[1721520027261,0.07857271,67280.0,67273.0,0.18238174]
[1721520027459,0.002794,67279.0,67273.0,0.18238174]
[1721520027893,0.002794,67279.0,67274.0,0.0783]
[1721520028096,0.025794,67284.0,67275.0,0.23452921]
[1721520028269,0.025794,67284.0,67276.0,0.0654]
[1721520028469,0.023,67284.0,67277.0,0.15438174]
[1721520028675,0.001,67280.0,67277.0,0.15438174]
[1721520029115,0.00837,67285.0,67277.0,0.15438174]
[1721520029455,0.001,67284.0,67277.0,0.15438174]
[1721520029856,0.00837,67285.0,67277.0,0.15438174]
[1721520030261,0.001,67279.0,67277.0,0.15438174]
[1721520031155,0.00837,67285.0,67277.0,0.45165974]
[1721520031351,0.002794,67284.0,67277.0,0.46165974]
[1721520031568,0.002794,67284.0,67283.0,0.445876]
[1721520031569,0.003794,67284.0,67283.0,0.445876]
[1721520031772,0.1425,67284.0,67278.0,0.148636]
[1721520031970,0.15142,67283.0,67279.0,0.15438174]
[1721520032197,0.291123,67284.0,67279.0,0.30301474]
[1721520032399,0.002794,67283.0,67280.0,0.148631]
[1721520032602,0.2346072,67284.0,67280.0,0.30301274]
[1721520033024,0.2356072,67284.0,67280.0,0.30301274]
[1721520033225,0.1435,67284.0,67280.0,0.30301274]
[1721520033570,0.291123,67284.0,67280.0,0.30301274]
[1721520033772,0.1435,67284.0,67280.0,0.30301274]
[1721520033945,0.1435,67284.0,67281.0,0.148629]
[1721520034379,0.1445,67284.0,67281.0,0.148629]
[1721520034572,0.1435,67284.0,67281.0,0.148629]
[1721520034727,0.1445,67284.0,67281.0,0.148629]
[1721520034926,0.1425,67284.0,67281.0,0.148629]
[1721520035305,0.1425,67284.0,67281.0,0.008]
[1721520035533,0.0781,67284.0,67281.0,0.019]
[1721520035769,0.0791,67284.0,67282.0,0.148627]
[1721520036380,0.0791,67284.0,67283.0,0.15438174]
[1721520036381,0.002,67284.0,67283.0,0.15438174]
[1721520036658,0.001,67284.0,67283.0,0.60025774]
[1721520036864,0.002,67284.0,67283.0,0.60025774]
[1721520037217,0.002,67284.0,67283.0,0.30300674]
[1721520037640,0.00837,67285.0,67283.0,0.30300674]
[1721520038069,0.002,67284.0,67283.0,0.31100674]
[1721520038728,0.001,67284.0,67283.0,0.31100674]
[1721520039548,0.001,67284.0,67283.0,0.32000674]
[1721520040283,0.001,67284.0,67283.0,0.31200674]
[1721520040484,0.00937,67285.0,67283.0,0.31200674]
[1721520040758,0.01037,67285.0,67283.0,0.31900674]
[1721520040961,0.00937,67285.0,67283.0,0.15438174]
[1721520041315,0.002,67284.0,67283.0,0.17338174]
[1721520041512,0.001,67284.0,67283.0,0.28879644]
[1721520041719,0.00837,67285.0,67283.0,0.15438174]
[1721520041929,0.00937,67285.0,67283.0,0.16138174]
[1721520042126,0.00937,67285.0,67283.0,0.16338174]
[1721520042330,0.00937,67285.0,67284.0,0.12341467]
[1721520042533,0.00937,67285.0,67284.0,0.27779641]
[1721520043196,0.00937,67285.0,67284.0,0.42249641]
[1721520043924,0.00837,67285.0,67284.0,0.42249641]
[1721520044593,0.00937,67285.0,67284.0,0.43149641]
[1721520044790,0.01037,67285.0,67284.0,0.43849641]
[1721520045021,0.01037,67285.0,67284.0,0.31508174]
[1721520045174,0.01037,67285.0,67284.0,0.4384922]
[1721520045573,0.01037,67285.0,67284.0,0.43849113]
[1721520047928,0.01037,67285.0,67284.0,0.31508174]
[1721520048163,0.01037,67285.0,67284.0,0.43849036]
[1721520051039,0.01037,67285.0,67284.0,0.31508174]
[1721520051245,0.01037,67285.0,67284.0,0.43848876]
[1721520054342,0.01037,67285.0,67284.0,0.35558908]
[1721520057325,0.01037,67285.0,67284.0,0.35558993]
[1721520057721,0.01037,67285.0,67284.0,0.23218174]
[1721520057968,0.01037,67285.0,67284.0,0.35558993]
[1721520058304,0.01037,67285.0,67284.0,0.43158993]
[1721520060287,0.05491332,67285.0,67284.0,0.29378993]
[1721520060515,0.21927,67285.0,67284.0,0.29378993]
[1721520060711,0.13150437,67285.0,67284.0,0.29378993]
[1721520061147,0.19837042,67285.0,67284.0,0.29378993]
[1721520061629,0.22065713,67285.0,67284.0,0.29378993]
[1721520062248,0.09952276,67285.0,67284.0,0.29378993]
[1721520062391,0.05494556,67285.0,67284.0,0.75378993]
[1721520062772,0.01037,67285.0,67284.0,0.24638174]
[1721520062966,0.05494546,67285.0,67284.0,0.36978911]
[1721520063682,0.01037,67285.0,67284.0,0.29378911]
[1721520063970,0.07723319,67285.0,67284.0,0.29378911]
[1721520064196,0.0772335,67285.0,67284.0,0.29378911]
[1721520064400,0.01037,67285.0,67284.0,0.29378911]
[1721520065548,0.07723263,67285.0,67284.0,0.29378911]
[1721520065958,0.07723263,67285.0,67284.0,0.17038174]
[1721520066164,0.07723263,67285.0,67284.0,0.29379104]
[1721520066363,0.01037,67285.0,67284.0,0.29379104]
[1721520066513,0.0772335,67285.0,67284.0,0.29379104]
[1721520067893,0.01037,67285.0,67284.0,0.29379104]
[1721520069060,0.01037,67285.0,67284.0,0.29378793]
[1721520069507,0.01037,67285.0,67284.0,0.29378813]
[1721520070391,0.01037,67285.0,67284.0,0.44168813]
[1721520073153,0.0772367,67285.0,67284.0,0.29378813]
[1721520073349,0.1798256,67285.0,67284.0,0.29378813]
[1721520074418,0.0995256,67285.0,67284.0,0.29378813]
[1721520074635,0.01037,67285.0,67284.0,0.29378813]
[1721520075304,0.09954133,67285.0,67284.0,0.29379106]
[1721520075716,0.09954133,67285.0,67284.0,0.44169106]
[1721520075931,0.01037,67285.0,67284.0,0.44169106]
[1721520076245,0.09954133,67285.0,67284.0,0.44169106]
[1721520078312,0.09955654,67285.0,67284.0,0.44169058]
[1721520079644,0.01037,67285.0,67284.0,0.44169058]
[1721520080287,0.09955654,67285.0,67284.0,0.44169058]
[1721520081563,0.09957728,67285.0,67284.0,0.44168869]
[1721520082049,0.01037,67285.0,67284.0,0.44168869]
[1721520082458,0.09957694,67285.0,67284.0,0.44168869]
[1721520084484,0.09957694,67285.0,67284.0,0.44168777]
[1721520087434,0.01037,67285.0,67284.0,0.44168777]
[1721520087658,0.01037,67285.0,67284.0,0.44169028]
[1721520088302,0.12190551,67285.0,67284.0,0.44169028]
[1721520088539,0.12190551,67285.0,67284.0,0.36029028]
[1721520090816,0.12191354,67285.0,67284.0,0.36029028]
[1721520091020,0.01037,67285.0,67284.0,0.36029028]
[1721520093371,0.12191354,67285.0,67284.0,0.36029028]
[1721520093973,0.12191354,67285.0,67284.0,0.36029014]
[1721520093974,0.12191519,67285.0,67284.0,0.36029014]
[1721520094400,0.12191519,67285.0,67284.0,0.23688174]
[1721520094576,0.12191519,67285.0,67284.0,0.36029021]
[1721520095384,0.12191519,67285.0,67284.0,0.29379021]
[1721520096466,0.01037,67285.0,67284.0,0.29379021]
[1721520097150,0.01037,67285.0,67284.0,0.29379241]
[1721520097352,0.01037,67285.0,67284.0,0.29379244]
[1721520097797,0.1219156,67285.0,67284.0,0.29379244]
[1721520100140,0.12191442,67285.0,67284.0,0.29379205]
[1721520100275,0.15305185,67285.0,67284.0,0.29379205]
[1721520101303,0.04150743,67285.0,67284.0,0.29379205]
[1721520101474,0.01037,67285.0,67284.0,0.29379205]
[1721520103470,0.01037,67285.0,67284.0,0.29379611]
[1721520103790,0.01037,67285.0,67284.0,0.36899611]
[1721520105454,0.01037,67285.0,67284.0,0.43319611]
[1721520105673,0.09958855,67285.0,67284.0,0.43319611]
[1721520106030,0.01037,67285.0,67284.0,0.43319611]
[1721520106234,0.09959199,67285.0,67284.0,0.43319611]
[1721520106445,0.09959118,67285.0,67284.0,0.30978174]
[1721520106682,0.09959118,67285.0,67284.0,0.43318715]
[1721520107110,0.01037,67285.0,67284.0,0.43318855]
[1721520107290,0.12189648,67285.0,67284.0,0.35798855]
[1721520107499,0.01037,67285.0,67284.0,0.35798855]
[1721520108651,0.01037,67285.0,67284.0,0.29378855]
[1721520108862,0.04126818,67285.0,67284.0,0.29378855]
[1721520109245,0.04126818,67285.0,67284.0,0.17038174]
[1721520110724,0.01037,67285.0,67284.0,0.17038174]
[1721520114924,0.01037,67285.0,67284.0,0.016]
[1721520117632,0.15327,67285.0,67284.0,0.016]
[1721520120531,0.01037,67285.0,67284.0,0.016]
[1721520120916,0.01037,67285.0,67284.0,0.0911]
[1721520122046,0.12186111,67285.0,67284.0,0.27721357]
[1721520122288,0.12186111,67285.0,67284.0,0.43159531]
[1721520122289,0.01037,67285.0,67284.0,0.43159531]
[1721520122464,0.01037,67285.0,67284.0,0.43159332]
[1721520122780,0.12186111,67285.0,67284.0,0.43159332]
[1721520123291,0.01037,67285.0,67284.0,0.43159332]
[1721520123839,0.12186111,67285.0,67284.0,0.43159332]
[1721520124038,0.12186111,67285.0,67284.0,0.30818174]
[1721520124372,0.12186111,67285.0,67284.0,0.43159563]
[1721520124583,0.01037,67285.0,67284.0,0.016]
[1721520125952,0.01037,67285.0,67284.0,0.1617]
[1721520126761,0.01037,67285.0,67284.0,0.0786]
[1721520127731,0.01037,67285.0,67284.0,0.23298174]
[1721520127919,0.01037,67285.0,67284.0,0.30888174]
[1721520128283,0.01037,67285.0,67284.0,0.23298174]
[1721520128869,0.01037,67285.0,67284.0,0.23193422]
[1721520130011,0.02278441,67285.0,67284.0,0.16933422]
[1721520130433,0.01037,67285.0,67284.0,0.16933422]
[1721520132405,0.01037,67285.0,67284.0,0.01495248]
[1721520136180,0.08607,67285.0,67284.0,0.01495248]
[1721520139386,0.08607,67285.0,67284.0,0.01245648]
[1721520140242,0.15197,67285.0,67284.0,0.01245648]
[1721520140453,1.25527533,67285.0,67284.0,0.01245648]
[1721520141376,0.01037,67285.0,67284.0,0.37996122]
[1721520141579,0.01037,67285.0,67284.0,0.30723822]
[1721520141778,0.12187565,67285.0,67284.0,0.43064986]
[1721520142011,0.27049665,67285.0,67284.0,0.43064986]
[1721520142463,0.27049665,67285.0,67284.0,0.13586812]
[1721520142464,0.93287571,67285.0,67284.0,0.13586812]
[1721520142664,0.93287571,67285.0,67284.0,0.01245648]
[1721520142665,0.82136766,67285.0,67284.0,0.01245648]
[1721520143842,0.89706766,67285.0,67284.0,0.01245648]
[1721520144188,0.82136766,67285.0,67284.0,0.01245648]
[1721520144393,1.11861066,67285.0,67284.0,0.01245648]
[1721520144593,0.82136766,67285.0,67284.0,0.01245648]
[1721520149612,1.05536766,67285.0,67284.0,0.01245648]
[1721520150261,1.35261066,67285.0,67284.0,0.01245648]
[1721520152096,1.05536766,67285.0,67284.0,0.01245648]
[1721520152227,1.09463827,67285.0,67284.0,0.01245648]
[1721520152634,1.39188127,67285.0,67284.0,0.01245648]
[1721520153071,1.35261066,67285.0,67284.0,0.01245648]
[1721520153271,1.39077393,67285.0,67284.0,0.01245648]
[1721520154056,1.39077393,67285.0,67284.0,0.01052627]
[1721520154298,1.68801693,67285.0,67284.0,0.01052627]
[1721520154474,1.43104339,67285.0,67284.0,0.01052627]
[1721520155606,1.11621,67281.0,67280.0,0.000924]
[1721520155812,1.34230038,67281.0,67280.0,0.000924]
[1721520156191,1.20851,67281.0,67280.0,0.000924]
[1721520156391,1.34229873,67281.0,67280.0,0.000924]
[1721520156820,1.20851,67281.0,67280.0,0.000924]
[1721520156986,1.36285957,67281.0,67280.0,0.000924]
[1721520157183,1.39844737,67281.0,67280.0,0.000924]
[1721520157555,1.46484344,67281.0,67280.0,0.007924]
[1721520157755,1.60484344,67281.0,67280.0,0.007924]
[1721520158053,2.05722571,67281.0,67280.0,0.007924]
[1721520158288,2.05722571,67281.0,67280.0,0.012924]
[1721520158460,2.14722571,67281.0,67280.0,0.012924]
[1721520158840,2.09622571,67281.0,67280.0,0.005924]
[1721520159079,2.00722571,67281.0,67280.0,0.000924]
[1721520159306,1.97448518,67281.0,67280.0,0.001924]
[1721520159619,1.97448518,67281.0,67280.0,0.000924]
[1721520159620,2.44641488,67281.0,67280.0,0.000924]
[1721520159900,2.45341488,67281.0,67280.0,0.001924]
[1721520160306,2.54341488,67281.0,67280.0,0.001924]
[1721520160457,2.53641488,67281.0,67280.0,0.000924]
[1721520160660,2.23915488,67281.0,67280.0,0.001924]
[1721520160866,2.25015488,67281.0,67280.0,0.001924]
[1721520161073,2.25015488,67281.0,67280.0,0.002924]
[1721520161074,2.26015488,67281.0,67280.0,0.002924]
[1721520161242,2.4104258,67281.0,67280.0,0.002924]
[1721520161851,2.05604406,67281.0,67280.0,0.001924]
[1721520162056,1.91677314,67281.0,67280.0,0.002924]
[1721520162259,2.17115488,67281.0,67280.0,0.002924]
[1721520162463,2.32185529,67281.0,67280.0,0.002924]
[1721520162668,2.16058437,67281.0,67280.0,0.001924]
[1721520162867,2.31785529,67281.0,67280.0,0.002924]
[1721520163065,2.25758437,67281.0,67280.0,0.002924]
[1721520163563,2.25058437,67281.0,67280.0,0.001924]
[1721520163779,2.55584437,67281.0,67280.0,0.002924]
[1721520164344,2.50584437,67281.0,67280.0,0.002924]
[1721520164546,2.55584437,67281.0,67280.0,0.002924]
[1721520164749,2.55584437,67281.0,67264.0,0.46304871]
[1721520164750,1.579649,67267.0,67264.0,0.46304871]
[1721520164951,1.82633074,67267.0,67265.0,0.46304871]
[1721520165194,1.82633074,67267.0,67255.0,0.07717479]
[1721520166145,1.82633074,67267.0,67266.0,0.008924]
[1721520166379,1.82733074,67267.0,67266.0,0.008924]
[1721520166577,1.77733074,67267.0,67266.0,0.008924]
[1721520166705,1.133927,67267.0,67266.0,0.008924]
[1721520166915,1.2656628,67267.0,67266.0,0.008924]
[1721520167122,1.3436628,67267.0,67266.0,0.008924]
[1721520167737,1.3446628,67267.0,67266.0,0.014924]
[1721520168565,1.60914454,67267.0,67266.0,0.014924]
[1721520168793,1.65914454,67267.0,67266.0,0.014924]
[1721520169146,1.95646654,67267.0,67266.0,0.014924]
[1721520169720,2.04646654,67267.0,67266.0,0.014924]
[1721520170487,2.44378854,67267.0,67266.0,0.014924]
[1721520170696,2.50981267,67267.0,67266.0,0.014924]
[1721520171054,2.05319067,67267.0,67266.0,0.014924]
[1721520171360,2.05646654,67267.0,67266.0,0.014924]
[1721520171641,2.05546654,67267.0,67266.0,0.008924]
[1721520172491,2.06445883,67267.0,67266.0,0.008924]
[1721520172959,2.06345883,67267.0,67266.0,0.000924]
[1721520173161,2.06345883,67267.0,67266.0,0.002924]
[1721520173363,2.01345883,67267.0,67266.0,0.002924]
[1721520173567,1.28135509,67267.0,67266.0,0.069024]
[1721520173768,1.60503683,67267.0,67266.0,0.002924]
[1721520173964,1.74313683,67267.0,67266.0,0.002924]
[1721520174276,2.04133025,67267.0,67266.0,0.002924]
[1721520174499,1.93035883,67267.0,67266.0,0.002924]
[1721520174899,1.95335883,67267.0,67266.0,0.002924]
[1721520175101,1.90335883,67267.0,67266.0,0.002924]
[1721520175322,1.99212595,67267.0,67266.0,0.002924]
[1721520177058,1.91412595,67267.0,67266.0,0.002924]
[1721520177458,1.82535883,67267.0,67266.0,0.002924]
[1721520179035,1.92535883,67267.0,67266.0,0.002924]
[1721520179676,1.96535883,67267.0,67266.0,0.002924]
[1721520179875,2.04335883,67267.0,67266.0,0.002924]
[1721520180075,2.15345883,67267.0,67266.0,0.002924]
[1721520180334,2.26440247,67267.0,67266.0,0.002924]
[1721520180542,2.30668994,67267.0,67266.0,0.002924]
[1721520180736,2.26440247,67267.0,67266.0,0.002924]
[1721520180943,2.56172447,67267.0,67266.0,0.002924]
[1721520181156,2.19574577,67267.0,67266.0,0.002924]
[1721520181564,2.45078083,67267.0,67266.0,0.002924]
[1721520181756,2.49313214,67267.0,67266.0,0.002924]
[1721520183059,2.49313214,67267.0,67237.0,0.148727]
[1721520183060,0.05,67250.0,67244.0,0.0661]
[1721520183275,1.110266,67245.0,67244.0,0.0661]
[1721520183475,0.812847,67245.0,67244.0,0.0661]
[1721520183677,0.835847,67245.0,67244.0,0.1428]
[1721520184735,0.835847,67245.0,67244.0,0.1508]
[1721520184950,1.133266,67245.0,67244.0,0.018]
[1721520185155,1.50564774,67245.0,67244.0,0.018]
[1721520185380,1.50564774,67245.0,67244.0,0.008]
[1721520185381,1.82316674,67245.0,67244.0,0.008]
[1721520185621,1.041092,67237.0,67236.0,0.000561]
[1721520185841,1.133392,67237.0,67236.0,0.000561]
[1721520187333,0.793692,67232.0,67231.0,0.000924]
[1721520187539,1.71232774,67232.0,67231.0,0.000924]
[1721520187754,1.68532774,67232.0,67231.0,0.000924]
[1721520188016,1.38785074,67232.0,67231.0,0.000924]
[1721520188226,1.54220031,67232.0,67231.0,0.000924]
[1721520188655,1.54220031,67232.0,67222.0,0.000924]
[1721520188656,1.09126,67226.0,67222.0,0.000924]
[1721520188862,1.49314474,67226.0,67222.0,0.000924]
[1721520189064,1.46494174,67226.0,67222.0,0.000924]
[1721520189277,1.64229131,67226.0,67222.0,0.000924]
[1721520190315,1.93979431,67226.0,67222.0,0.000924]
[1721520191157,1.88979431,67226.0,67222.0,0.000924]
[1721520191778,1.90779431,67226.0,67225.0,0.002924]
[1721520192184,1.99779431,67226.0,67225.0,0.002924]
[1721520192390,1.90779431,67226.0,67225.0,0.002924]
[1721520193442,1.95779431,67226.0,67225.0,0.002924]
[1721520193653,2.04779431,67226.0,67225.0,0.002924]
[1721520195744,2.09142766,67226.0,67225.0,0.002924]
[1721520196380,2.12339431,67226.0,67225.0,0.002924]
[1721520196585,2.12339431,67226.0,67222.0,0.000924]
[1721520196586,1.438826,67223.0,67222.0,0.000924]
[1721520196798,1.94160774,67223.0,67222.0,0.000924]
[1721520197431,2.23912474,67223.0,67222.0,0.000924]
[1721520197856,2.23912474,67223.0,67193.0,0.07717479]
[1721520197857,1.04168,67199.0,67193.0,0.07717479]
[1721520198067,1.225148,67199.0,67192.0,0.46304871]
[1721520198335,1.225148,67199.0,67198.0,0.009127]
[1721520198336,1.248148,67199.0,67198.0,0.009127]
[1721520198926,1.249148,67199.0,67198.0,0.020127]
[1721520199349,1.249148,67199.0,67198.0,0.009127]
[1721520200159,1.249148,67199.0,67198.0,0.015127]
[1721520200160,1.179848,67199.0,67198.0,0.015127]
[1721520200365,1.180848,67199.0,67198.0,0.015127]
[1721520200781,1.179848,67199.0,67198.0,0.009127]
[1721520201182,1.180848,67199.0,67198.0,0.015127]
[1721520201393,1.180848,67199.0,67198.0,0.019127]
[1721520203053,0.585602,67199.0,67198.0,0.019127]
[1721520203251,0.585602,67199.0,67198.0,0.162027]
[1721520204922,0.025,67199.0,67198.0,0.162027]
[1721520205707,0.173811,67199.0,67198.0,0.162027]
[1721520206245,0.025,67199.0,67198.0,0.162027]
[1721520207049,0.173811,67199.0,67198.0,0.162027]
[1721520207662,0.769057,67199.0,67198.0,0.162027]
[1721520208023,0.8757229,67199.0,67198.0,0.162027]
[1721520208207,1.1733459,67199.0,67198.0,0.162027]
[1721520210953,1.1733459,67199.0,67198.0,0.080727]
[1721520215753,1.1733459,67199.0,67198.0,0.079727]
[1721520216568,1.1733459,67199.0,67198.0,0.017127]
[1721520216980,1.41772764,67199.0,67198.0,0.017127]
[1721520217219,1.72535064,67199.0,67198.0,0.017127]
[1721520217420,1.72535064,67199.0,67198.0,0.016127]
[1721520218247,1.72535064,67199.0,67198.0,0.015127]
[1721520220108,1.84485064,67199.0,67198.0,0.015127]
[1721520220510,1.93485064,67199.0,67198.0,0.015127]
[1721520224633,1.98485064,67199.0,67198.0,0.015127]
[1721520228819,2.42167364,67199.0,67198.0,0.015127]
[1721520229080,2.46354539,67199.0,67198.0,0.015127]
[1721520229488,2.50786138,67199.0,67198.0,0.015127]
[1721520229733,2.52901938,67199.0,67198.0,0.009127]
[1721520229867,2.46254539,67199.0,67198.0,0.009127]
[1721520230070,2.50793364,67199.0,67198.0,0.009127]
[1721520230360,2.53001938,67199.0,67198.0,0.009127]
[1721520230523,2.4642816,67199.0,67198.0,0.009127]
[1721520230699,2.53090525,67199.0,67198.0,0.009127]
[1721520230908,2.42167364,67199.0,67198.0,0.009127]
[1721520231125,2.53081444,67199.0,67198.0,0.009127]
[1721520231328,2.55302252,67199.0,67198.0,0.009127]
[1721520231733,2.55202252,67199.0,67198.0,0.005127]
[1721520232064,2.5772306,67199.0,67198.0,0.005127]
[1721520232391,2.46619021,67199.0,67198.0,0.005127]
[1721520232851,2.46619021,67199.0,67179.0,0.07717479]
[1721520232852,0.05,67182.0,67176.0,0.074207]
[1721520233178,1.11152,67177.0,67176.0,0.009207]
[1721520233351,1.287672,67177.0,67176.0,0.009207]
[1721520233600,1.337672,67177.0,67176.0,0.009207]
[1721520233799,1.360672,67177.0,67176.0,0.009207]
[1721520234295,1.465072,67177.0,67176.0,0.009207]
[1721520235584,1.468072,67177.0,67176.0,0.009207]
[1721520235930,1.465072,67177.0,67176.0,0.011207]
[1721520236286,1.469072,67177.0,67176.0,0.011207]
[1721520236489,1.465072,67177.0,67176.0,0.009207]
[1721520236899,1.466072,67177.0,67176.0,0.009207]
[1721520237227,1.465072,67177.0,67176.0,0.009207]
[1721520237661,1.467072,67177.0,67176.0,0.009207]
[1721520238027,1.470072,67177.0,67176.0,0.009207]
[1721520238428,1.467072,67177.0,67176.0,0.009207]
[1721520238844,1.471072,67177.0,67176.0,0.009207]
[1721520238981,1.465072,67177.0,67176.0,0.009207]
[1721520239192,1.466072,67177.0,67176.0,0.009207]
[1721520239416,1.469072,67177.0,67176.0,0.009207]
[1721520239781,0.8443,67177.0,67176.0,0.157307]
[1721520240597,0.8463,67177.0,67176.0,0.157307]
[1721520241294,0.8733,67177.0,67176.0,0.157307]
[1721520241597,0.57158,67177.0,67176.0,0.157307]
[1721520241800,0.025,67177.0,67176.0,0.157307]
[1721520242032,0.006,67177.0,67176.0,0.158307]
[1721520242157,0.03827,67177.0,67176.0,0.158307]
[1721520242360,0.007,67177.0,67176.0,0.158307]
[1721520242563,0.007,67177.0,67176.0,0.604894]
[1721520242767,0.148847,67183.0,67179.0,0.148855]
[1721520242944,0.148849,67182.0,67181.0,0.0831]
[1721520243150,0.148849,67182.0,67181.0,0.14806]
[1721520244642,0.446547,67182.0,67181.0,0.14806]
[1721520245483,0.469547,67182.0,67181.0,0.15006]
[1721520246556,0.55739148,67182.0,67181.0,0.15006]
[1721520248776,0.55739148,67182.0,67181.0,0.14672822]
[1721520249384,0.469547,67182.0,67181.0,0.14672822]
[1721520250853,0.002794,67184.0,67182.0,0.0644]
[1721520251869,0.002794,67184.0,67181.0,0.002]
[1721520251870,0.002794,67184.0,67183.0,0.1416]
[1721520252089,0.0300474,67184.0,67183.0,0.1416]
[1721520252459,0.023,67185.0,67183.0,0.0772]
[1721520252659,0.171842,67185.0,67184.0,0.0644]
[1721520252886,0.174636,67185.0,67184.0,0.0644]
[1721520253116,0.171842,67185.0,67184.0,0.0644]
[1721520253343,0.61044643,67185.0,67184.0,0.0644]
[1721520255079,0.61246127,67185.0,67184.0,0.0644]
[1721520255261,0.56793941,67185.0,67184.0,0.0644]
[1721520256092,0.63743941,67185.0,67184.0,0.0644]
[1721520258316,0.70423406,67185.0,67184.0,0.0644]
[1721520259086,1.00191906,67185.0,67184.0,0.0644]
[1721520259901,0.93512441,67185.0,67184.0,0.0644]
[1721520260272,1.02418395,67185.0,67184.0,0.0644]
[1721520260691,0.93512441,67185.0,67184.0,0.0644]
[1721520261177,1.02420253,67185.0,67184.0,0.0644]
[1721520261378,0.93512441,67185.0,67184.0,0.0644]
[1721520262449,1.04648662,67185.0,67184.0,0.0644]
[1721520262659,0.93512441,67185.0,67184.0,0.0644]
[1721520263699,1.04648662,67185.0,67184.0,0.0644]
[1721520264409,1.04651487,67185.0,67184.0,0.0644]
[1721520264613,0.297696,67183.0,67177.0,0.0644]
[1721520264786,0.26291313,67178.0,67177.0,0.0644]
[1721520265186,0.26291339,67178.0,67177.0,0.0644]
[1721520265980,0.56162939,67178.0,67177.0,0.0694]
[1721520266205,0.56262939,67178.0,67177.0,0.0754]
[1721520266490,0.66415742,67178.0,67177.0,0.0754]
[1721520266709,0.61960203,67178.0,67177.0,0.0754]
[1721520268273,0.6641651,67178.0,67177.0,0.0754]
[1721520268586,0.9618811,67178.0,67177.0,0.0754]
[1721520269709,0.91731803,67178.0,67177.0,0.0754]
[1721520271470,0.98419131,67178.0,67177.0,0.0754]
[1721520272961,0.68647531,67178.0,67177.0,0.0754]
[1721520273778,0.61960203,67178.0,67177.0,0.0754]
[1721520273983,0.5849617,67178.0,67177.0,0.1521]
[1721520274252,0.5154617,67178.0,67177.0,0.1521]
[1721520274484,0.2177457,67178.0,67177.0,0.1521]
[1721520274718,0.002,67178.0,67177.0,0.45534174]
[1721520274951,0.002,67178.0,67177.0,1.47211011]